Workbook

Sheet 社保基金预算封面
A1: 附件1
A2: 2024 年 社 会 保 险 基 金 预 算
I4: 批准日期： | J4: 0 | K4: 年 | L4: 0 | M4: 月 | N4: 0 | O4: 日
B6: 财政厅（局）：
B8: 人力资源社会保障厅（局）：
B10: 税务局： | I10: 报送日期： | J10: 0 | K10: 年 | L10: 0 | M10: 月 | N10: 0 | O10: 日
B12: 医疗保障局：
B14: 财政厅（局）负责人（章）： | I14: 财务负责人（章）： | M14: 经办人（章）：
B16: 人力资源社会保障（厅）局负责人（章）： | I16: 财务负责人（章）： | M16: 经办人（章）：
B18: 税务局负责人（章）： | I18: 社保费部门负责人（章）： | M18: 经办人（章）：
B20: 医疗保障局负责人（章）： | I20: 财务负责人（章）： | M20: 经办人（章）：

Sheet 预算目录
A2: 目 录
B4: 一、2024年社会保险基金收支预算总表........................................................... | D4: 社预01表
B5: 二、2024年企业职工基本养老保险基金收支预算表......................................................... | D5: 社预02表
B6: 三、2024年城乡居民基本养老保险基金收支预算表......................................................... | D6: 社预03表
B7: 四、2024年机关事业单位基本养老保险基金收支预算表................................................... | D7: 社预04表
B8: 五、2024年职工基本医疗保险(含生育保险)基金收支预算表......................................................... | D8: 社预05表
B9: 六、2024年城乡居民基本医疗保险基金收支预算表................................................... | D9: 社预06表
B10: 七、2024年工伤保险基金收支预算表............................................... | D10: 社预07表
B11: 八、2024年失业保险基金收支预算表....................................................... | D11: 社预08表
B12: 九、2024年财政对社会保险基金补助情况表..................................................... | D12: 社预附01表
B13: 十、2024年地方财政对企业职工基本养老保险基金补助情况构成表..................... | D13: 社预附02表
B14: 十一、2024年基本养老保险基础资料表..................................................... | D14: 社预附03表
B15: 十二、2024年基本医疗保险基础资料表..................................................... | D15: 社预附04表
B16: 十三、2024年失业保险、工伤保险基础资料表..................................................... | D16: 社预附05表

Sheet 社预01-预算总表
A1: 2024年社会保险基金收支预算总表
I2: 社预01表
A3: 长治市沁源县 | I3: 单位：元
A4: 项 目 | B4: 合计 | C4: 企业职工基本 养老保险基金 | D4: 城乡居民基本 养老保险基金 | E4: 机关事业单位基 本养老保险基金 | F4: 职工基本医疗保险 (含生育保险)基金 | G4: 城乡居民基本 医疗保险基金 | H4: 工伤保险基金 | I4: 失业保险基金
A5: 一、收入 | B5: =C5+D5+E5+F5+G5+H5+I5 -> 268,373,445.97 | C5: 0 | D5: 73,677,139.00 | E5: 194,696,306.97 | F5: 0 | G5: 0 | H5: 0 | I5: 0
A6: 其中:1.社会保险费收入 | B6: =C6+D6+E6+F6+G6+H6+I6 -> 95,247,406.97 | C6: 0 | D6: 17,374,100.00 | E6: 77,873,306.97 | F6: 0 | G6: 0 | H6: 0 | I6: 0
A7: 2.财政补贴收入 | B7: =C7+D7+E7+F7+G7+H7+I7 -> 166,085,880.00 | C7: 0 | D7: 52,835,880.00 | E7: 113,250,000.00 | F7: 0 | G7: 0 | H7: 0 | I7: 0
A8: 3.利息收入 | B8: =C8+D8+E8+F8+G8+H8+I8 -> 1,980,000.00 | C8: 0 | D8: 1,450,000.00 | E8: 530,000.00 | F8: 0 | G8: 0 | H8: 0 | I8: 0
A9: 4.委托投资收益 | B9: =C9+D9 -> 1,840,919.00 | C9: 0 | D9: 1,840,919.00
A10: 5.转移收入 | B10: =C10+D10+E10+F10+I10 -> 2,967,000.00 | C10: 0 | D10: 75,000.00 | E10: 2,892,000.00 | F10: 0 | I10: 0
A11: 6.其他收入 | B11: =C11+D11+E11+F11+G11+H11+I11 -> 159,000.00 | C11: 0 | D11: 8,000.00 | E11: 151,000.00 | F11: 0 | G11: 0 | H11: 0 | I11: 0
A12: 7.全国统筹调剂资金收入（省级专用） | B12: =C12 -> 0 | C12: 0
A13: 8.全国统筹调剂资金收入（中央专用) | B13: =C13 -> 0 | C13: 0
A14: 二、支出 | B14: =C14+D14+E14+F14+G14+H14+I14 -> 249,540,531.48 | C14: 0 | D14: 56,189,200.00 | E14: 193,351,331.48 | F14: 0 | G14: 0 | H14: 0 | I14: 0
A15: 其中:1.社会保险待遇支出 | B15: =C15+D15+E15+F15+G15+H15+I15 -> 249,441,531.48 | C15: 0 | D15: 56,119,200.00 | E15: 193,322,331.48 | F15: 0 | G15: 0 | H15: 0 | I15: 0
A16: 2.转移支出 | B16: =C16+D16+E16+F16+I16 -> 99,000.00 | C16: 0 | D16: 70,000.00 | E16: 29,000.00 | F16: 0 | I16: 0
A17: 3.其他支出 | B17: =C17+D17+E17+F17+G17+H17+I17 -> 0 | C17: 0 | D17: 0 | E17: 0 | F17: 0 | G17: 0 | H17: 0 | I17: 0
A18: 4.全国统筹调剂资金支出（中央专用） | B18: =C18 -> 0 | C18: 0
A19: 5.全国统筹调剂资金支出（省级专用） | B19: =C19 -> 0 | C19: 0
A20: 三、本年收支结余 | B20: =C20+D20+E20+F20+G20+H20+I20 -> 18,832,914.49 | C20: 0 | D20: 17,487,939.00 | E20: 1,344,975.49 | F20: 0 | G20: 0 | H20: 0 | I20: 0
A21: 四、年末滚存结余 | B21: =C21+D21+E21+F21+G21+H21+I21 -> 216,083,913.01 | C21: 0 | D21: 195,696,567.78 | E21: 20,387,345.23 | F21: 0 | G21: 0 | H21: 0 | I21: 0
I22: 第 1 页

Sheet 社预02-企业职工养老保险预算表
A1: 2024年企业职工基本养老保险基金收支预算表
E2: 社预02表
A3: 长治市沁源县 | F3: 单位：元
A4: 项 目 | B4: 2023年执行数 | C4: 2024年预算数 | D4: 项 目 | E4: 2023年执行数 | F4: 2024年预算数
A5: 一、基本养老保险费收入 | B5: 0 | C5: 0 | D5: 一、基本养老金支出 | E5: 0.00 | F5: 0.00
A6: 二、财政补贴收入 | B6: 0 | C6: 0 | D6: 其中：离休金支出 | E6: 0.00 | F6: 0.00
A7: 其中：地方财政补贴 | B7: 0 | C7: 0 | D7: 二、医疗补助金支出 | E7: 0 | F7: 0
A8: 三、利息收入 | B8: 0 | C8: 0 | D8: 三、丧葬补助金和抚恤金支出 | E8: 0.00 | F8: 0.00
A9: 四、委托投资收益 | B9: 0 | C9: 0 | D9: 四、病残津贴支出 | E9: 0.00 | F9: 0.00
A10: 五、转移收入 | B10: 0 | C10: 0 | D10: 五、转移支出 | E10: 0 | F10: 0.00
A11: 六、其他收入 | B11: 0 | C11: 0 | D11: 六、其他支出 | E11: 0.00 | F11: 0.00
A12: 其中：滞纳金 | B12: 0 | C12: 0 | D12: × | E12: × | F12: ×
A13: 七、本年收入小计 | B13: =B5+B6+B8+B9+B10+B11 -> 0 | C13: =C5+C6+C8+C9+C10+C11 -> 0 | D13: 七、本年支出小计 | E13: =E5+E7+E8+E9+E10+E11 -> 0 | F13: =F5+F7+F8+F9+F10+F11 -> 0
A14: 八、上级补助收入 | B14: 0 | C14: 0 | D14: 八、补助下级支出 | E14: 0 | F14: 0
A15: 其中：全国统筹调剂资金 收入(省级专用) | B15: 0 | C15: 0 | D15: 其中：全国统筹调剂资金 支出(中央专用) | E15: 0 | F15: 0
A16: 九、下级上解收入 | B16: 0 | C16: 0 | D16: 九、上解上级支出 | E16: 0 | F16: 0
A17: 其中：全国统筹调剂资金 收入(中央专用) | B17: 0 | C17: 0 | D17: 其中：全国统筹调剂资金 支出(省级专用) | E17: 0 | F17: 0
A18: 十、本年收入合计 | B18: =B13+B14+B16 -> 0 | C18: =C13+C14+C16 -> 0 | D18: 十、本年支出合计 | E18: =E13+E14+E16 -> 0 | F18: =F13+F14+F16 -> 0
A19: × | B19: × | C19: × | D19: 十一、本年收支结余 | E19: =B18-E18 -> 0 | F19: =C18-F18 -> 0
A20: 十一、上年结余 | B20: 0 | C20: =E20 -> 0 | D20: 十二、年末滚存结余 | E20: =B20+E19 -> 0 | F20: =C20+F19 -> 0
A21: 总 计 | B21: =B18+B20 -> 0 | C21: =C18+C20 -> 0 | D21: 总 计 | E21: =E18+E20 -> 0 | F21: =F18+F20 -> 0
B22: 0 | E22: 0 | F22: 第 2 页

Sheet 社预03-城乡居民养老保险预算表
A1: 2024年城乡居民基本养老保险基金收支预算表
E2: 社预03表
A3: 长治市沁源县 | F3: 单位：元
A4: 项 目 | B4: 2023年执行数 | C4: 2024年预算数 | D4: 项 目 | E4: 2023年执行数 | F4: 2024年预算数
A5: 一、个人缴费收入 | B5: 14,956,500.00 | C5: 17,374,100.00 | D5: 一、基础养老金支出 | E5: 44,708,820.00 | F5: 51,605,880.00
A6: 其中：财政为困难人员代缴收入 | B6: 700,000.00 | C6: 630,000.00 | D6: 二、个人账户养老金支出 | E6: 3,950,040.00 | F6: 4,513,320.00
A7: 二、财政补贴收入 | B7: 43,276,126.00 | C7: 52,835,880.00 | D7: 三、丧葬补助金支出 | E7: 0 | F7: 0
A8: 其中：财政对基础养老金的补贴 | B8: 41,868,426.00 | C8: 51,605,880.00 | D8: 四、转移支出 | E8: 60,000.00 | F8: 70,000.00
A9: 财政对个人缴费的补贴 | B9: 1,407,700.00 | C9: 1,230,000.00 | D9: 五、其他支出 | E9: 0 | F9: 0
A10: 三、集体补助收入 | B10: 112,600.25 | C10: 93,240.00 | D10: × | E10: × | F10: ×
A11: 四、利息收入 | B11: 4,650,000.00 | C11: 1,450,000.00 | D11: × | E11: × | F11: ×
A12: 五、委托投资收益 | B12: 1,630,252.00 | C12: 1,840,919.00 | D12: × | E12: × | F12: ×
A13: 六、转移收入 | B13: 70,000.00 | C13: 75,000.00 | D13: × | E13: × | F13: ×
A14: 七、其他收入 | B14: 7,000.00 | C14: 8,000.00 | D14: × | E14: × | F14: ×
A15: 八、本年收入小计 | B15: =B5+B7+B10+B11+B12+B13+B14 -> 64,702,478.25 | C15: =C5+C7+C10+C11+C12+C13+C14 -> 73,677,139.00 | D15: 六、本年支出小计 | E15: =E5+E6+E7+E8+E9 -> 48,718,860.00 | F15: =F5+F6+F7+F8+F9 -> 56,189,200.00
A16: 九、上级补助收入 | B16: 0 | C16: 0 | D16: 七、补助下级支出 | E16: 0 | F16: 0
A17: 十、下级上解收入 | B17: 0 | C17: 0 | D17: 八、上解上级支出 | E17: 0 | F17: 0
A18: 十一、本年收入合计 | B18: =B15+B16+B17 -> 64,702,478.25 | C18: =C15+C16+C17 -> 73,677,139.00 | D18: 九、本年支出合计 | E18: =E15+E16+E17 -> 48,718,860.00 | F18: =F15+F16+F17 -> 56,189,200.00
A19: × | B19: × | C19: × | D19: 十、本年收支结余 | E19: =B18-E18 -> 15,983,618.25 | F19: =C18-F18 -> 17,487,939.00
A20: 十二、上年结余 | B20: 162,225,010.53 | C20: =E20 -> 178,208,628.78 | D20: 十一、年末滚存结余 | E20: =B20+E19 -> 178,208,628.78 | F20: =C20+F19 -> 195,696,567.78
A21: 总 计 | B21: =B18+B20 -> 226,927,488.78 | C21: =C18+C20 -> 251,885,767.78 | D21: 总 计 | E21: =E18+E20 -> 226,927,488.78 | F21: =F18+F20 -> 251,885,767.78
F22: 第 3 页

Sheet 社预04-机关事业单位养老保险预算表
A1: 2024年机关事业单位基本养老保险基金收支预算表
F2: 社预04表
A3: 长治市沁源县 | F3: 单位：元
A4: 项 目 | B4: 2023年执行数 | C4: 2024年预算数 | D4: 项 目 | E4: 2023年执行数 | F4: 2024年预算数
A5: 一、基本养老保险费收入 | B5: 77,379,576.00 | C5: 77,873,306.97 | D5: 一、基本养老金支出 | E5: 180,863,283.96 | F5: 193,322,331.48
A6: 其中：当期征缴收入 | B6: 73,239,576.00 | C6: 74,521,506.97 | D6: 二、转移支出 | E6: 28,000.00 | F6: 29,000.00
A7: 二、财政补贴收入 | B7: 106,220,000.00 | C7: 113,250,000.00 | D7: 三、其他支出 | E7: 0 | F7: 0
A8: 其中：地方财政补贴 | B8: 88,000,000.00 | C8: 95,000,000.00 | D8: × | E8: × | F8: ×
A9: 三、利息收入 | B9: 520,000.00 | C9: 530,000.00 | D9: × | E9: × | F9: ×
A10: 四、转移收入 | B10: 2,890,000.00 | C10: 2,892,000.00 | D10: × | E10: × | F10: ×
A11: 五、其他收入 | B11: 150,000.00 | C11: 151,000.00 | D11: × | E11: × | F11: ×
A12: 其中：滞纳金 | B12: 0 | C12: 0 | D12: × | E12: × | F12: ×
A13: 六、本年收入小计 | B13: =B5+B7+B9+B10+B11 -> 187,159,576.00 | C13: =C5+C7+C9+C10+C11 -> 194,696,306.97 | D13: 四、本年支出小计 | E13: =E5+E6+E7 -> 180,891,283.96 | F13: =F5+F6+F7 -> 193,351,331.48
A14: 七、上级补助收入 | B14: 0 | C14: 0 | D14: 五、补助下级支出 | E14: 0 | F14: 0
A15: 八、下级上解收入 | B15: 0 | C15: 0 | D15: 六、上解上级支出 | E15: 0 | F15: 0
A16: 九、本年收入合计 | B16: =B13+B14+B15 -> 187,159,576.00 | C16: =C13+C14+C15 -> 194,696,306.97 | D16: 七、本年支出合计 | E16: =E13+E14+E15 -> 180,891,283.96 | F16: =F13+F14+F15 -> 193,351,331.48
A17: × | B17: × | C17: × | D17: 八、本年收支结余 | E17: =B16-E16 -> 6,268,292.04 | F17: =C16-F16 -> 1,344,975.49
A18: 十、上年结余 | B18: 12,774,077.70 | C18: =E18 -> 19,042,369.74 | D18: 九、年末滚存结余 | E18: =B18+E17 -> 19,042,369.74 | F18: =C18+F17 -> 20,387,345.23
A19: 总 计 | B19: =B16+B18 -> 199,933,653.70 | C19: =C16+C18 -> 213,738,676.71 | D19: 总 计 | E19: =E16+E18 -> 199,933,653.70 | F19: =F16+F18 -> 213,738,676.71
F20: 第 4 页

Sheet 社预05-职工医疗保险预算表
A1: 2024年职工基本医疗保险(含生育保险)基金收支预算表
G2: 社预05表
A3: 长治市沁源县 | G3: 单位：元
A4: 项 目 | B4: 2023年执行数 | E4: 2024年预算数
B5: 小计 | C5: 基本医疗保险统筹基金(含单建统筹） | D5: 基本医疗保险 个人账户基金 | E5: 小计 | F5: 基本医疗保险统筹基金(含单建统筹） | G5: 基本医疗保险 个人账户基金
A6: 一、基本医疗保险费收入 | B6: =C6+D6 -> 0 | C6: =C7+C8 -> 0 | D6: =D7+D8 -> 0 | E6: =F6+G6 -> 0 | F6: =F7+F8 -> 0 | G6: =G7+G8 -> 0
A7: 其中：单位缴费 | B7: =C7+D7 -> 0 | C7: 0 | D7: 0 | E7: =F7+G7 -> 0 | F7: 0 | G7: 0
A8: 个人缴费 | B8: =C8+D8 -> 0 | C8: 0 | D8: 0 | E8: =F8+G8 -> 0 | F8: 0 | G8: 0
A9: 二、财政补贴收入 | B9: =C9 -> 0 | C9: 0 | D9: × | E9: =F9 -> 0 | F9: 0 | G9: ×
A10: 其中：对医保基金负担新冠病毒疫苗及接种费用的补助 | B10: =C10 -> 0 | C10: 0 | D10: × | E10: =F10 -> 0 | F10: 0 | G10: ×
A11: 三、利息收入 | B11: =C11+D11 -> 0 | C11: 0 | D11: 0 | E11: =F11+G11 -> 0 | F11: 0 | G11: 0
A12: 四、转移收入 | B12: =D12 -> 0 | C12: × | D12: 0 | E12: =G12 -> 0 | F12: × | G12: 0
A13: 五、其他收入 | B13: =C13+D13 -> 0 | C13: 0 | D13: 0 | E13: =F13+G13 -> 0 | F13: 0 | G13: 0
A14: 其中：滞纳金 | B14: =C14 -> 0 | C14: 0 | D14: × | E14: =F14 -> 0 | F14: 0 | G14: ×
A15: 六、本年收入小计 | B15: =C15+D15 -> 0 | C15: =C6+C9+C11+C13 -> 0 | D15: =D6+D11+D12+D13 -> 0 | E15: =F15+G15 -> 0 | F15: =F6+F9+F11+F13 -> 0 | G15: =G6+G11+G12+G13 -> 0
A16: 七、上级补助收入 | B16: 0 | C16: 0 | D16: 0 | E16: 0 | F16: 0 | G16: 0
A17: 八、下级上解收入 | B17: 0 | C17: 0 | D17: 0 | E17: 0 | F17: 0 | G17: 0
A18: 九、本年收入合计 | B18: 0 | C18: =C15+C16+C17 -> 0 | D18: =D15+D16+D17 -> 0 | E18: 0 | F18: =F15+F16+F17 -> 0 | G18: =G15+G16+G17 -> 0
A19: 十、上年结余 | B19: 0 | C19: 0 | D19: 0 | E19: 0 | F19: =C35 -> 0 | G19: =D35 -> 0
A20: 总 计 | B20: 0 | C20: =C18+C19 -> 0 | D20: =D18+D19 -> 0 | E20: 0 | F20: =F18+F19 -> 0 | G20: =G18+G19 -> 0
A21: 项 目 | B21: 2023年执行数 | E21: 2024年预算数
B22: 小计 | C22: 基本医疗保险统筹基金(含单建统筹） | D22: 基本医疗保险 个人账户基金 | E22: 小计 | F22: 基本医疗保险统筹基金(含单建统筹） | G22: 基本医疗保险 个人账户基金
A23: 一、基本医疗保险待遇支出 | B23: =C23+D23 -> 0 | C23: =C24+C25+C26+C27 -> 0 | D23: =D24+D25+D26 -> 0 | E23: =F23+G23 -> 0 | F23: =F24+F25+F26+F27 -> 0 | G23: =G24+G25+G26 -> 0
A24: 其中: 住院费用支出 | B24: =C24+D24 -> 0 | C24: 0 | D24: 0 | E24: =F24+G24 -> 0 | F24: 0 | G24: 0
A25: 门诊费用支出 | B25: =C25+D25 -> 0 | C25: 0 | D25: 0 | E25: =F25+G25 -> 0 | F25: 0 | G25: 0
A26: 生育医疗费用支出 | B26: =C26+D26 -> 0 | C26: 0 | D26: 0 | E26: =F26+G26 -> 0 | F26: 0 | G26: 0
A27: 生育津贴支出 | B27: =C27 -> 0 | C27: 0 | D27: × | E27: =F27 -> 0 | F27: 0 | G27: ×
A28: 二、转移支出 | B28: =D28 -> 0 | C28: × | D28: 0 | E28: =G28 -> 0 | F28: × | G28: 0
A29: 三、其他支出 | B29: =C29+D29 -> 0 | C29: 0 | D29: 0 | E29: =F29+G29 -> 0 | F29: 0 | G29: 0
A30: 四、本年支出小计 | B30: 0 | C30: =C23+C29 -> 0 | D30: =D23+D28+D29 -> 0 | E30: 0 | F30: =F23+F29 -> 0 | G30: =G23+G28+G29 -> 0
A31: 五、补助下级支出 | B31: 0 | C31: 0 | D31: 0 | E31: 0 | F31: 0 | G31: 0
A32: 六、上解上级支出 | B32: 0 | C32: 0 | D32: 0 | E32: 0 | F32: 0 | G32: 0
A33: 七、本年支出合计 | B33: 0 | C33: =C30+C31+C32 -> 0 | D33: =D30+D31+D32 -> 0 | E33: 0 | F33: =F30+F31+F32 -> 0 | G33: =G30+G31+G32 -> 0
A34: 八、本年收支结余 | B34: 0 | C34: =C18-C33 -> 0 | D34: =D18-D33 -> 0 | E34: 0 | F34: =F18-F33 -> 0 | G34: =G18-G33 -> 0
A35: 九、年末滚存结余 | B35: 0 | C35: =C19+C34 -> 0 | D35: =D19+D34 -> 0 | E35: 0 | F35: =F19+F34 -> 0 | G35: =G19+G34 -> 0
A36: 总 计 | B36: 0 | C36: =C33+C35 -> 0 | D36: =D33+D35 -> 0 | E36: 0 | F36: =F33+F35 -> 0 | G36: =G33+G35 -> 0
G37: 第 5 页

Sheet 社预06-城乡居民医保预算表
A1: 2024年城乡居民基本医疗保险基金收支预算表
F2: 社预06表
A3: 长治市沁源县 | F3: 单位：元
A4: 项 目 | B4: 2023年执行数 | C4: 2024年预算数 | D4: 项 目 | E4: 2023年执行数 | F4: 2024年预算数
A5: 一、基本医疗保险费收入 | B5: 0 | C5: 0 | D5: 一、基本医疗保险待遇支出 | E5: =E6+E7 -> 0 | F5: =F6+F7 -> 0
A6: 其中：集体扶持收入 | B6: 0 | C6: 0 | D6: 其中：住院费用支出 | E6: 0 | F6: 0
A7: 城乡医疗救助资助收入 | B7: 0 | C7: 0 | D7: 门诊费用支出 | E7: 0 | F7: 0
A8: 财政为困难人员代缴收入 | B8: 0 | C8: 0 | D8: 二、大病保险支出 | E8: 0 | F8: 0
A9: 二、财政补贴收入 | B9: 0 | C9: 0 | D9: 三、其他支出 | E9: 0 | F9: 0
A10: 其中：按规定标准补助收入 | B10: 0 | C10: 0 | D10: × | E10: × | F10: ×
A11: 对医保基金负担新冠病毒疫苗及接种费用的补助 | B11: 0 | C11: 0 | D11: × | E11: × | F11: ×
A12: 三、利息收入 | B12: 0 | C12: 0 | D12: × | E12: × | F12: ×
A13: 四、其他收入 | B13: 0 | C13: 0 | D13: × | E13: × | F13: ×
A14: 五、本年收入小计 | B14: =B5+B9+B12+B13 -> 0 | C14: =C5+C9+C12+C13 -> 0 | D14: 四、本年支出小计 | E14: =E5+E8+E9 -> 0 | F14: =F5+F8+F9 -> 0
A15: 六、上级补助收入 | B15: 0 | C15: 0 | D15: 五、补助下级支出 | E15: 0 | F15: 0
A16: 七、下级上解收入 | B16: 0 | C16: 0 | D16: 六、上解上级支出 | E16: 0 | F16: 0
A17: 八、本年收入合计 | B17: =B14+B15+B16 -> 0 | C17: =C14+C15+C16 -> 0 | D17: 七、本年支出合计 | E17: =E14+E15+E16 -> 0 | F17: =F14+F15+F16 -> 0
A18: × | B18: × | C18: × | D18: 八、本年收支结余 | E18: =B17-E17 -> 0 | F18: =C17-F17 -> 0
A19: 九、上年结余 | B19: 0 | C19: =E19 -> 0 | D19: 九、年末滚存结余 | E19: =B19+E18 -> 0 | F19: =C19+F18 -> 0
A20: 总 计 | B20: =B17+B19 -> 0 | C20: =C17+C19 -> 0 | D20: 总 计 | E20: =E17+E19 -> 0 | F20: =F17+F19 -> 0
F21: 第 6 页

Sheet 社预07-工伤保险预算表
A1: 2024年工伤保险基金收支预算表
E2: 社预07表
A3: 长治市沁源县 | F3: 单位：元
A4: 项 目 | B4: 2023年执行数 | C4: 2024年预算数 | D4: 项 目 | E4: 2023年执行数 | F4: 2024年预算数
A5: 一、工伤保险费收入 | B5: 0 | C5: 0 | D5: 一、工伤保险待遇支出 | E5: =E6+E7+E8 -> 0 | F5: =F6+F7+F8 -> 0
A6: 其中：工伤保险费-公务员工伤保险费收入 | B6: 0 | C6: 0 | D6: 其中：工伤医疗待遇支出 | E6: 0 | F6: 0
A7: 二、职业伤害保障费收入（试点） | B7: 0 | C7: 0 | D7: 伤残待遇支出 | E7: 0 | F7: 0
A8: 三、财政补贴收入 | B8: 0 | C8: 0 | D8: 工亡待遇支出 | E8: 0 | F8: 0
A9: 四、利息收入 | B9: 0 | C9: 0 | D9: 二、劳动能力鉴定支出 | E9: 0 | F9: 0
A10: × | B10: × | C10: × | D10: 三、工伤保险预防费用支出 | E10: 0 | F10: 0
A11: × | B11: × | C11: × | D11: 四、职业伤害保障支出（试点） | E11: =E12+E13+E14 -> 0 | F11: =F12+F13+F14 -> 0
A12: × | B12: × | C12: × | D12: 其中：职业伤害保障待遇支出 | E12: 0 | F12: 0
A13: × | B13: × | C13: × | D13: 职业伤害保障劳动能力鉴定支出 | E13: 0 | F13: 0
A14: 五、其他收入 | B14: 0 | C14: 0 | D14: 职业伤害保障委托承办费用支出 | E14: 0 | F14: 0
A15: 其中：滞纳金 | B15: 0 | C15: 0 | D15: 五、其他支出 | E15: 0 | F15: 0
A16: 六、本年收入小计 | B16: =B5+B7+B8+B9+B14 -> 0 | C16: =C5+C7+C8+C9+C14 -> 0 | D16: 六、本年支出小计 | E16: =E5+E9+E10+E11+E15 -> 0 | F16: =F5+F9+F10+F11+F15 -> 0
A17: 七、上级补助收入 | B17: 0 | C17: 0 | D17: 七、补助下级支出 | E17: 0 | F17: 0
A18: 八、下级上解收入 | B18: 0 | C18: 0 | D18: 八、上解上级支出 | E18: 0 | F18: 0
A19: 九、本年收入合计 | B19: =B16+B17+B18 -> 0 | C19: =C16+C17+C18 -> 0 | D19: 九、本年支出合计 | E19: =E16+E17+E18 -> 0 | F19: =F16+F17+F18 -> 0
A20: × | B20: × | C20: × | D20: 十、本年收支结余 | E20: =B19-E19 -> 0 | F20: =C19-F19 -> 0
A21: 十、上年结余 | B21: 0 | C21: =E21 -> 0 | D21: 十一、年末滚存结余 | E21: =B21+E20 -> 0 | F21: =C21+F20 -> 0
A22: 总 计 | B22: =B19+B21 -> 0 | C22: =C19+C21 -> 0 | D22: 总 计 | E22: =E19+E21 -> 0 | F22: =F19+F21 -> 0
F23: 第 7 页

Sheet 社预08-失业保险预算表
A1: 2024年失业保险基金收支预算表
E2: 社预08表
A3: 长治市沁源县 | F3: 单位：元
A4: 项 目 | B4: 2023年执行数 | C4: 2024年预算数 | D4: 项 目 | E4: 2023年执行数 | F4: 2024年预算数
A5: 一、失业保险费收入 | B5: 0 | C5: 0 | D5: 一、失业保险金支出 | E5: 0 | F5: 0
A6: 二、财政补贴收入 | B6: 0 | C6: 0 | D6: 二、基本医疗保险费（含生育保险费）支出 | E6: 0 | F6: 0
A7: 三、利息收入 | B7: 0 | C7: 0 | D7: 三、丧葬补助金和抚恤金支出 | E7: 0 | F7: 0
A8: 四、转移收入 | B8: 0 | C8: 0 | D8: 四、职业培训和职业介绍补贴支出 | E8: 0 | F8: 0
A9: 五、其他收入 | B9: 0 | C9: 0 | D9: 五、其他费用支出 | E9: 0 | F9: 0
A10: 其中：滞纳金 | B10: 0 | C10: 0 | D10: 其中：其他促进就业支出（东部7省、市） | E10: 0 | F10: 0
A11: × | B11: × | C11: × | D11: 农民合同制工人一次性生活补助和价格临时补贴 | E11: 0 | F11: 0
A12: × | B12: × | C12: × | D12: 六、稳定岗位补贴（稳岗返还）支出 | E12: 0 | F12: 0
A13: × | B13: × | C13: × | D13: 七、技能提升补贴支出 | E13: 0 | F13: 0
A14: × | B14: × | C14: × | D14: 八、转移支出 | E14: 0 | F14: 0
A15: × | B15: × | C15: × | D15: 九、其他支出 | E15: 0 | F15: 0
A16: 六、本年收入小计 | B16: =B5+B6+B7+B8+B9 -> 0 | C16: =C5+C6+C7+C8+C9 -> 0 | D16: 十、本年支出小计 | E16: =E5+E6+E7+E8+E9+E12+E13+E14+E15 -> 0 | F16: =F5+F6+F7+F8+F9+F12+F13+F14+F15 -> 0
A17: 七、上级补助收入 | B17: 0 | C17: 0 | D17: 十一、补助下级支出 | E17: 0 | F17: 0
A18: 八、下级上解收入 | B18: 0 | C18: 0 | D18: 十二、上解上级支出 | E18: 0 | F18: 0
A19: 九、本年收入合计 | B19: =B16+B17+B18 -> 0 | C19: =C16+C17+C18 -> 0 | D19: 十三、本年支出合计 | E19: =E16+E17+E18 -> 0 | F19: =F16+F17+F18 -> 0
A20: × | B20: × | C20: × | D20: 十四、本年收支结余 | E20: =B19-E19 -> 0 | F20: =C19-F19 -> 0
A21: 十、上年结余 | B21: 0 | C21: =E21 -> 0 | D21: 十五、年末滚存结余 | E21: =B21+E20 -> 0 | F21: =C21+F20 -> 0
A22: 总 计 | B22: =B19+B21 -> 0 | C22: =C19+C21 -> 0 | D22: 总 计 | E22: =E19+E21 -> 0 | F22: =F19+F21 -> 0
F23: 第 8 页

Sheet 社预附01-财政对社会保险基金补助情况表
A1: 2024年财政对社会保险基金补助情况表
I3: 社预附01表
A4: 长治市沁源县 | I4: 单位：元
A5: 项 目 | B5: 合计 | C5: 企业职工基本养老保险基金 | D5: 城乡居民基本养老保险基金 | E5: 机关事业单位基本养老保险基金 | F5: 职工基本医疗保险（含生育保险）基金 | G5: 城乡居民基本医疗保险基金 | H5: 工伤保险基金 | I5: 失业保险基金
A6: 本年预算安排 | B6: =B9+B10+B11+B12 -> 166,085,880.00 | C6: 0 | D6: 52,835,880.00 | E6: 113,250,000.00 | F6: 0 | G6: 0 | H6: 0 | I6: 0
A7: 一般公共预算科目和名称 | B7: × | C7: 2082601财政对企业职工基本养老保险基金的补助 | D7: 2082602财政对城乡居民基本养老保险基金的补助 | E7: 2080507对机关事业单位基本养老保险基金的补助 | F7: 2101201财政对职工基本医疗保险基金的补助 | G7: 2101202财政对城乡居民基本医疗保险基金的补助 | H7: 2082702财政对工伤保险基金的补助 | I7: 2082701财政对失业保险基金的补助
A8: 一般公共预算列支金额 | B8: =C8+D8+E8+F8+G8+H8+I8 -> 166,085,880.00 | C8: 0 | D8: 52,835,880.00 | E8: 113,250,000.00 | F8: 0 | G8: 0 | H8: 0 | I8: 0
A9: （一）中央级 | B9: =C9+D9+E9+F9+G9+H9+I9 -> 50,497,240.00 | C9: 0 | D9: 32,247,240.00 | E9: 18,250,000.00 | F9: 0 | G9: 0 | H9: 0 | I9: 0
A10: （二）省级 | B10: =C10+D10+E10+F10+G10+H10+I10 -> 10,331,640.00 | C10: 0 | D10: 10,331,640.00 | E10: 0 | F10: 0 | G10: 0 | H10: 0 | I10: 0
A11: （三）地（市）级 | B11: =C11+D11+E11+F11+G11+H11+I11 -> 5,146,200.00 | C11: 0 | D11: 5,146,200.00 | E11: 0 | F11: 0 | G11: 0 | H11: 0 | I11: 0
A12: （四）县级 | B12: =C12+D12+E12+F12+G12+H12+I12 -> 100,110,800.00 | C12: 0 | D12: 5,110,800.00 | E12: 95,000,000.00 | F12: 0 | G12: 0 | H12: 0 | I12: 0
I13: 第 9 页

Sheet 社预附02-地方财政对企业职工养老保险基金补助情况构成表
A1: 2024年地方财政对企业职工基本养老保险基金补助情况构成表
B3: 社预附02表
A4: 长治市沁源县 | B4: 单位：元
A5: 项 目 | B5: 金额
A6: 一、合计 | B6: =B7+B8+B9+B10 -> 0
A7: （一）当年调整基本养老金支出补助 | B7: =B12+B17+B22 -> 0
A8: （二）基金当期缺口补助 | B8: =B13+B18+B23 -> 0
A9: （三）地方自行出台基金减收增支政策补助 | B9: =B14+B19+B24 -> 0
A10: （四）其他补助 | B10: =B15+B20+B25 -> 0
A11: 二、省级 | B11: =B12+B13+B14+B15 -> 0
A12: （一）当年调整基本养老金支出补助 | B12: 0
A13: （二）基金当期缺口补助 | B13: 0
A14: （三）地方自行出台基金减收增支政策补助 | B14: 0
A15: （四）其他补助 | B15: 0
A16: 三、地（市）级 | B16: =B17+B18+B19+B20 -> 0
A17: （一）当年调整基本养老金支出补助 | B17: 0
A18: （二）基金当期缺口补助 | B18: 0
A19: （三）地方自行出台基金减收增支政策补助 | B19: 0
A20: （四）其他补助 | B20: 0
A21: 四、县级 | B21: =B22+B23+B24+B25 -> 0
A22: （一）当年调整基本养老金支出补助 | B22: 0
A23: （二）基金当期缺口补助 | B23: 0
A24: （三）地方自行出台基金减收增支政策补助 | B24: 0
A25: （四）其他补助 | B25: 0
B26: 第 10 页

Sheet 社预附03-基本养老保险基础资料
A1: 2024年基本养老保险基础资料表
A2: 长治市沁源县 | H2: 社预附03表
A3: 项 目 | B3: 单位 | C3: 2023年执行数 | D3: 2024年预算数 | E3: 项 目 | F3: 单位 | G3: 2023年执行数 | H3: 2024年预算数
A4: 一、企业职工基本养老保险 | B4: × | C4: × | D4: × | E4: (2)本年补缴以前年度欠费 | F4: 元 | G4: 0 | H4: 0
A5: (一)参保人数 | B5: 人 | C5: =C6+C8+C9 -> 0 | D5: =D6+D8+D9 -> 0 | E5: (3)本年新增欠费 | F5: 元 | G5: 0 | H5: 0
A6: 1.在职职工 | B6: 人 | C6: 0 | D6: 0 | E6: (4)年末累计欠费 | F6: 元 | G6: =C24-G4+G5 -> 0 | H6: =D24-H4+H5 -> 0
A7: 其中：个人身份参保 | B7: 人 | C7: 0 | D7: 0 | E7: 3.本年预缴以后年度基本养老保险费 | F7: 元 | G7: 0 | H7: 0
A8: 2.离休人员 | B8: 人 | C8: 0 | D8: 0 | E8: 4.一次性补缴以前年度基本养老保险费 | F8: 元 | G8: 0 | H8: 0
A9: 3.退休、退职人员 | B9: 人 | C9: 0 | D9: 0 | E9: 二、城乡居民基本养老保险 | F9: × | G9: × | H9: ×
A10: (1)当年新增退休退职人员 | B10: 人 | C10: 0 | D10: 0 | E10: (一)16-59周岁参保人数 | F10: 人 | G10: 53,330 | H10: 53,500
A11: (2)当年死亡退休退职人员 | B11: 人 | C11: 0 | D11: 0 | E11: (二)16-59周岁缴费人数 | F11: 人 | G11: 31,350 | H11: 36,300
A12: (二)缴费人数 | B12: 人 | C12: 0 | D12: 0 | E12: (三)实际领取待遇人数 | F12: 人 | G12: 23,462 | H12: 26,090
A13: 其中：个人身份缴费 | B13: 人 | C13: 0 | D13: 0 | E13: (四)人均缴费水平 | F13: 元/年 | G13: 477.08 | H13: 478.63
A14: (三)缴费基数总额 | B14: 元 | C14: 0 | D14: 0 | E14: (五)人均财政对个人缴费补贴水平 | F14: 元/年 | G14: 44.90 | H14: 33.88
A15: 其中：个人身份缴费基数总额 | B15: 元 | C15: 0 | D15: 0 | E15: （六）人均养老金水平 | F15: 元/月 | G15: 172.83 | H15: 179.25
A16: (四)缴费费率 | B16: % | C16: =IF(C14=0,0,(C22+G5)/C14*100) -> 0 | D16: =IF(D14=0,0,(D22+H5)/D14*100) -> 0 | E16: 三、机关事业单位基本养老保险 | F16: × | G16: × | H16: ×
A17: 1.单位缴费费率 | B17: % | C17: 0 | D17: 0 | E17: (一)参保人数 | F17: 人 | G17: =G18+G19 -> 7,582 | H17: =H18+H19 -> 7,711
A18: 2.职工个人缴费费率 | B18: % | C18: 0 | D18: 0 | E18: 1.在职职工 | F18: 人 | G18: 4,739 | H18: 4,784
A19: 3.以个人身份参保缴费费率 | B19: % | C19: 0 | D19: 0 | E19: 2.退休、退职人员 | F19: 人 | G19: 2,843 | H19: 2,927
A20: (五)人均缴费工资基数 | B20: 元/年 | C20: =IF(C12=0,0,C14/C12) -> 0 | D20: =IF(D12=0,0,D14/D12) -> 0 | E20: (二)缴费人数 | F20: 人 | G20: 4,656 | H20: 4,701
A21: (六)保险费缴纳情况 | B21: × | C21: × | D21: × | E21: (三)缴费基数总额 | F21: 元 | G21: 307,570,200.00 | H21: 312,684,035.76
A22: 1.缴纳当年基本养老保险费 | B22: 元 | C22: 0 | D22: 0 | E22: (四)缴费费率 | F22: % | G22: 23.81 | H22: 23.83
A23: 2.欠费情况 | B23: × | C23: × | D23: × | E23: (五)人均缴费工资基数 | F23: 元/年 | G23: =IF(G20=0,0,G21/G20) -> 66,058.89 | H23: =IF(H20=0,0,H21/H20) -> 66,514.37
A24: (1)上年末累计欠费 | B24: 元 | C24: 0 | D24: =G6 -> 0 | E24: 四、统筹地区职工平均工资 | F24: 元/年 | G24: 77,257 | H24: 84,216
H25: 第 11 页

Sheet 社预附04-基本医疗保险基础资料表
A1: 2024年基本医疗保险基础资料表
A2: 长治市沁源县 | H2: 社预附04表
A3: 项 目 | B3: 单位 | C3: 2023年执行数 | D3: 2024年预算数 | E3: 项 目 | F3: 单位 | G3: 2023年执行数 | H3: 2024年预算数
A4: 一、职工基本医疗保险 | B4: × | C4: × | D4: × | E4: 其中：单位缴费 | F4: 元 | G4: 0 | H4: 0
A5: (一)参保人数 | B5: 人 | C5: =C6+C8 -> 0 | D5: =D6+D8 -> 0 | E5: 个人缴费 | F5: 元 | G5: 0 | H5: 0
A6: 1.在职职工 | B6: 人 | C6: 0 | D6: 0 | E6: 2.欠费情况 | F6: × | G6: × | H6: ×
A7: 其中：单建统筹 | B7: 人 | C7: 0 | D7: 0 | E7: (1)上年末累计欠费 | F7: 元 | G7: 0 | H7: =G12 -> 0
A8: 2.退休人员 | B8: 人 | C8: 0 | D8: 0 | E8: (2)本年补缴以前年度欠费 | F8: 元 | G8: 0 | H8: 0
A9: 其中：单建统筹 | B9: 人 | C9: 0 | D9: 0 | E9: (3)本年新增欠费 | F9: 元 | G9: =G10+G11 -> 0 | H9: =H10+H11 -> 0
A10: (二)缴费人数 | B10: 人 | C10: 0 | D10: 0 | E10: 其中：单位欠费 | F10: 元 | G10: 0 | H10: 0
A11: 其中：单建统筹缴费人数 | B11: 人 | C11: 0 | D11: 0 | E11: 个人欠费 | F11: 元 | G11: 0 | H11: 0
A12: (三)缴费基数总额 | B12: 元 | C12: =C15+C16 -> 0 | D12: =D15+D16 -> 0 | E12: (4)年末累计欠费 | F12: 元 | G12: =G7+G9-G8 -> 0 | H12: =H7+H9-H8 -> 0
A13: 1.统账结合 | B13: × | C13: × | D13: × | E13: 3.本年预缴以后年度基本医疗保险费 | F13: 元 | G13: 0 | H13: 0
A14: （1）单位缴费 | B14: 元 | C14: 0 | D14: 0 | E14: 4.一次性补缴以前年度基本医疗保险费 | F14: 元 | G14: 0 | H14: 0
A15: （2）个人缴费 | B15: 元 | C15: 0 | D15: 0 | E15: 二、城乡居民基本医疗保险 | F15: × | G15: × | H15: ×
A16: 2.单建统筹 | B16: 元 | C16: 0 | D16: 0 | E16: (一)年末缴费人数 | F16: 人 | G16: 0 | H16: 0
A17: (四)缴费费率 | B17: % | C17: =IF(C12=0,0,(C23+G9)/C12*100) -> 0 | D17: =IF(D12=0,0,(D23+H9)/D12*100) -> 0 | E17: (二)缴费标准 | F17: 元/年 | G17: =G18+G19 -> 0 | H17: =H18+H19 -> 0
A18: 1.单位缴费费率 | B18: % | C18: 0 | D18: 0 | E18: 其中：个人缴费标准 | F18: 元/年 | G18: 0 | H18: 0
A19: 2.个人缴费费率 | B19: % | C19: 0 | D19: 0 | E19: 财政补贴标准 | F19: 元/年 | G19: 0 | H19: 0
A20: 3.单建统筹缴费费率 | B20: % | C20: 0 | D20: 0 | E20: (三)大病保险情况 | F20: × | G20: × | H20: ×
A21: (五)人均缴费工资基数 | B21: 元/年 | C21: =IF(C10=0,0,C12/C10) -> 0 | D21: =IF(D10=0,0,D12/D10) -> 0 | E21: 1.覆盖人数 | F21: 人 | G21: 0 | H21: 0
A22: (六)保险费缴纳情况 | B22: × | C22: × | D22: × | E22: 2.筹资标准 | F22: 元/年 | G22: 0 | H22: 0
A23: 1.缴纳当年基本医疗保险费 | B23: 元 | C23: =G4+G5 -> 0 | D23: =H4+H5 -> 0 | E23: 3.人均筹资水平 | F23: 元/年 | G23: 0 | H23: 0
H24: 第 12 页

Sheet 社预附05-失业保险、工伤保险基础资料表
A1: 2024年失业保险、工伤保险基础资料表
A2: 长治市沁源县 | H2: 社预附05表
A3: 项 目 | B3: 单位 | C3: 2023年执行数 | D3: 2024年预算数 | E3: 项 目 | F3: 单位 | G3: 2023年执行数 | H3: 2024年预算数
A4: 一、失业保险 | B4: × | C4: × | D4: × | E4: 二、工伤保险 | F4: × | G4: × | H4: ×
A5: (一)参保人数 | B5: 人 | C5: 0 | D5: 0 | E5: (一)参保人数 | F5: 人 | G5: 0 | H5: 0
A6: 其中：农民合同制工人参保人数 | B6: 人 | C6: 0 | D6: 0 | E6: 其中：职业伤害保障参保人数 | F6: 人 | G6: 0 | H6: 0
A7: (二)缴费人数 | B7: 人 | C7: 0 | D7: 0 | E7: (二)缴费人数 | F7: 人 | G7: 0 | H7: 0
A8: (三)缴费基数总额 | B8: × | C8: × | D8: × | E8: (三)缴费基数总额 | F8: 元 | G8: 0.00 | H8: 0.00
A9: 1.单位 | B9: 元 | C9: 0.00 | D9: 0.00 | E9: (四)缴费费率 | F9: % | G9: =IF(G8=0,0,G12/G8)*100 -> 0.00 | H9: =IF(H8=0,0,H12/H8)*100 -> 0.00
A10: 2.个人 | B10: 元 | C10: 0.00 | D10: 0.00 | E10: (五)人均缴费工资基数 | F10: 元/年 | G10: =IF(G7=0,0,G8/G7) -> 0.00 | H10: =IF(H7=0,0,H8/H7) -> 0.00
A11: (四)缴费费率 | B11: % | C11: 0.00 | D11: 0.00 | E11: (六)缴纳当年工伤保险费 | F11: 元 | G11: 0.00 | H11: 0.00
A12: (五)人均缴费工资基数 | B12: 元/年 | C12: =IF(C7=0,0,C10/C7) -> 0.00 | D12: =IF(D7=0,0,D10/D7) -> 0.00 | E12: 其中：按缴费基数缴纳的工伤保险费 | F12: 元 | G12: 0.00 | H12: 0.00
A13: (六)全年领取失业保险金人月数 | B13: 人月 | C13: 0 | D13: 0 | E13: （七）享受工伤保险待遇全年累计人数 | F13: 人 | G13: =G14+G15+G16+G17 -> 0 | H13: =H14+H15+H16+H17 -> 0
A14: (七)代缴基本医疗保险费人月数 | B14: 人月 | C14: 0 | D14: 0 | E14: 1.享受工伤医疗待遇全年累计人数 | F14: 人 | G14: 0 | H14: 0
A15: (八)享受稳定岗位补贴（稳岗返还）企业参加失业保险人数 | B15: 人 | C15: 0 | D15: 0 | E15: 2.享受伤残待遇全年累计人数 | F15: 人 | G15: 0 | H15: 0
A16: (九)享受技能提升补贴人数 | B16: 人 | C16: 0 | D16: 0 | E16: 3.工伤工亡人数 | F16: 人 | G16: 0 | H16: 0
A17: × | B17: × | C17: × | D17: × | E17: 4.享受职业伤害保障待遇全年累计人数 | F17: 人 | G17: 0 | H17: 0
H18: 第 13 页
